fUST/lending_fUST_20250401
["ID","MTS","AMOUNT","RATE_DAILY","PERIOD"]
[356970221,1743511838328,-635.45,0.00016986,2]
[356970223,1743511838337,-500.0,0.00016986,2]
[356970225,1743511838346,-500.0,0.00016986,2]
[356970227,1743511838355,-500.0,0.00016986,2]
[356970228,1743511838364,-618.27,0.00016986,2]
[356970230,1743511838374,-500.0,0.00016986,2]
[356970232,1743511838383,-500.0,0.00016986,2]
[356970234,1743511838392,-500.0,0.00016986,2]
[356970235,1743511838402,-500.0,0.00016986,2]
[356970237,1743511838411,-500.0,0.00016986,2]
[356970239,1743511838421,-500.0,0.00016986,2]
[356970241,1743511838430,-500.0,0.00016986,2]
[356970242,1743511838439,-500.0,0.00016986,2]
[356970244,1743511838449,-500.0,0.00016986,2]
[356970246,1743511838459,-618.55,0.00016986,2]
[356970248,1743511838469,-500.0,0.00016986,2]
[356970249,1743511838478,-500.0,0.00016986,2]
[356970251,1743511838488,-500.0,0.00016986,2]
[356970253,1743511838498,-3733.39,0.00016986,2]
[356970255,1743511838507,-500.0,0.00016986,2]
[356970257,1743511838517,-500.0,0.00016986,2]
[356970258,1743511838526,-552.2,0.00016986,2]
[356970260,1743511838536,-500.0,0.00016986,2]
[356970262,1743511838546,-589.15,0.00016986,2]
[356970264,1743511838556,-500.0,0.00016986,2]
[356970266,1743511838565,-2903.61,0.00016986,2]
[356970267,1743511838575,-500.0,0.00016986,2]
[356970269,1743511838584,-500.0,0.00016986,2]
[356970271,1743511838593,-500.0,0.00016986,2]
[356970273,1743511838602,-500.0,0.00016986,2]
[356970274,1743511838611,-4746.78,0.00016986,2]
[356970276,1743511838621,-500.0,0.00016986,2]
[356970278,1743511838631,-500.0,0.00016986,2]
[356970280,1743511838640,-500.0,0.00016986,2]
[356970282,1743511838650,-500.0,0.00016986,2]
[356970284,1743511838659,-1427.21,0.00016986,2]
[356970286,1743511838669,-1831.33,0.00016986,2]
[356970287,1743511838678,-829.33,0.00016986,2]
[356970289,1743511838687,-500.0,0.00016986,2]
[356970291,1743511838698,-500.0,0.00016986,2]
[356970293,1743511838707,-901.12,0.00016986,2]
[356970295,1743511838716,-10198.4,0.00016986,2]
[356970297,1743511838726,-1956.22,0.00016986,2]
[356970299,1743511838736,-500.0,0.00016986,2]
[356970300,1743511838745,-150.19224549,0.00016986,2]
[356970302,1743511838755,-539.81,0.00016986,2]
[356970304,1743511838764,-607.67,0.00016986,2]
[356970306,1743511838773,-4310.96,0.00016986,2]
[356970308,1743511838783,-200.0,0.00016986,2]
[356970310,1743511838792,-2071.97,0.00016986,2]
[356970311,1743511838802,-500.0,0.00016986,2]
[356970313,1743511838811,-898.84,0.00016986,2]
[356970315,1743511838822,-500.0,0.00016986,2]
[356970317,1743511838831,-500.0,0.00016986,2]
[356970319,1743511838841,-500.0,0.00016986,2]
[356970321,1743511838850,-1742.34,0.00016986,2]
[356970323,1743511838859,-500.0,0.00016986,2]
[356970324,1743511838869,-594.35,0.00016986,2]
[356970326,1743511838879,-500.0,0.00016986,2]
[356970328,1743511838888,-505.77,0.00016986,2]
[356970330,1743511838899,-11519.68,0.00016986,2]
[356970332,1743511838908,-3396.4,0.00016986,2]
[356970334,1743511838918,-500.0,0.00016986,2]
[356970336,1743511838927,-588.38,0.00016986,2]
[356970338,1743511838937,-500.0,0.00016986,2]
[356970339,1743511838946,-597.82,0.00016986,2]
[356970341,1743511838956,-500.0,0.00016986,2]
[356970343,1743511838965,-500.0,0.00016986,2]
[356970345,1743511838975,-500.0,0.00016986,2]
[356970347,1743511838985,-6013.25,0.00016986,2]
[356970349,1743511838994,-500.0,0.00016986,2]
[356970351,1743511839003,-698.88,0.00016986,2]
[356970352,1743511839012,-926.1,0.00016986,2]
[356970354,1743511839022,-2627.75,0.00016986,2]
[356970356,1743511839032,-2688.77,0.00016986,2]
[356970358,1743511839041,-1319.31,0.00016986,2]
[356970359,1743511839051,-2867.87,0.00016986,2]
[356970361,1743511839062,-3629.52,0.00016986,2]
[356970363,1743511839071,-907.13,0.00016986,2]
[356970365,1743511839080,-770.9,0.00016986,2]
[356970367,1743511839089,-209.75368092,0.00016986,2]
[356970368,1743511839099,-584.69,0.00016986,2]
[356970370,1743511839108,-543.74,0.00016986,2]
[356970372,1743511839121,-1161.33,0.00016986,2]
[356970374,1743511839131,-458.11575614,0.00016986,2]
[356970376,1743511839140,-1377.78,0.00016986,2]
[356970377,1743511839149,-814.41,0.00016986,2]
[356970379,1743511839159,-2088.0,0.00016986,2]
[356970381,1743511839168,-539.2,0.00016986,2]
[356970383,1743511839178,-820.58,0.00016986,2]
[356970385,1743511839187,-594.06319904,0.00016986,2]
[356970386,1743511839197,-500.0,0.00016986,2]
[356970388,1743511839207,-500.0,0.00016986,2]
[356970390,1743511839217,-500.0,0.00016986,2]
[356970392,1743511839227,-430.49812264,0.00016986,2]
[356970393,1743511839236,-5678.07,0.00016986,2]
[356970395,1743511839246,-500.0,0.00016986,2]
[356970397,1743511839255,-500.0,0.00016986,2]
[356970399,1743511839264,-500.0,0.00016986,2]
[356970400,1743511839274,-500.0,0.00016986,2]
[356970402,1743511839284,-1230.57,0.00016986,2]
[356970404,1743511839294,-932.68,0.00016986,2]
[356970406,1743511839303,-500.0,0.00016986,2]
[356970407,1743511839313,-500.0,0.00016986,2]
[356970410,1743511839323,-500.0,0.00016986,2]
[356970413,1743511839332,-968.43,0.00016986,2]
[356970415,1743511839341,-590.49,0.00016986,2]
[356970417,1743511839351,-500.0,0.00016986,2]
[356970418,1743511839360,-1446.65,0.00016986,2]
[356970420,1743511839369,-500.0,0.00016986,2]
[356970422,1743511839379,-500.0,0.00016986,2]
[356970424,1743511839388,-3087.28,0.00016986,2]
[356970426,1743511839397,-1474.18,0.00016986,2]
[356970427,1743511839407,-1315.11,0.00016986,2]
[356970429,1743511839416,-500.0,0.00016986,2]
[356970431,1743511839426,-2138.38,0.00016986,2]
[356970433,1743511839436,-500.0,0.0001726,2]
[356970435,1743511839446,-500.0,0.0001726,2]
[356970437,1743511839455,-500.0,0.0001726,2]
[356970439,1743511839465,-500.0,0.0001726,2]
[356970441,1743511839475,-500.0,0.0001726,2]
[356970443,1743511839484,-500.0,0.0001726,2]
[356970444,1743511839494,-500.0,0.0001726,2]
[356970445,1743511839504,-500.0,0.0001726,2]
[356970446,1743511839513,-500.0,0.0001726,2]
[356970447,1743511839523,-183.67886928,0.0001726,2]
[356970448,1743511839532,-500.0,0.0001726,2]
[356970449,1743511839542,-500.0,0.0001726,2]
[356970450,1743511839552,-500.0,0.0001726,2]
[356970451,1743511839561,-500.0,0.0001726,2]
[356970452,1743511839571,-500.0,0.0001726,2]
[356970453,1743511839581,-500.0,0.0001726,2]
[356970454,1743511839590,-500.0,0.0001726,2]
[356970455,1743511839600,-500.0,0.0001726,2]
[356970456,1743511839610,-500.0,0.0001726,2]
[356970457,1743511839619,-500.0,0.0001726,2]
[356970458,1743511839629,-500.0,0.0001726,2]
[356970459,1743511839638,-500.0,0.0001726,2]
[356970460,1743511839648,-500.0,0.0001726,2]
[356970461,1743511839657,-500.0,0.0001726,2]
[356970462,1743511839666,-500.0,0.0001726,2]
[356970464,1743511839676,-500.0,0.0001726,2]
[356970466,1743511839685,-559.76,0.0001726,2]
[356970468,1743511839695,-500.0,0.0001726,2]
[356970470,1743511839704,-562.68895755,0.0001726,2]
[356970472,1743511839713,-500.0,0.0001726,2]
[356970474,1743511839723,-812.55,0.0001726,2]
[356970476,1743511839733,-500.0,0.0001726,2]
[356970478,1743511839743,-785.36,0.0001726,2]
[356970479,1743511839753,-500.0,0.0001726,2]
[356970480,1743511839762,-500.0,0.0001726,2]
[356970481,1743511839771,-500.0,0.0001726,2]
[356970482,1743511839781,-500.0,0.0001726,2]
[356970483,1743511839791,-791.06,0.0001726,2]
[356970484,1743511839801,-500.0,0.0001726,2]
[356970485,1743511839811,-500.0,0.0001726,2]
[356970486,1743511839821,-500.0,0.0001726,2]
[356970487,1743511839830,-500.0,0.0001726,2]
[356970488,1743511839840,-500.0,0.0001726,2]
[356970489,1743511839849,-500.0,0.0001726,2]
[356970490,1743511839858,-500.0,0.0001726,2]
[356970491,1743511839868,-500.0,0.0001726,2]
[356970492,1743511839878,-500.0,0.0001726,2]
[356970494,1743511839888,-500.0,0.0001726,2]
[356970495,1743511839898,-500.0,0.0001726,2]
[356970496,1743511839908,-500.0,0.0001726,2]
[356970497,1743511839919,-1670.24,0.0001726,2]
[356970498,1743511839928,-500.0,0.0001726,2]
[356970500,1743511839938,-500.0,0.0001726,2]
[356970502,1743511839947,-500.0,0.0001726,2]
[356970504,1743511839956,-500.0,0.0001726,2]
[356970505,1743511839967,-500.0,0.0001726,2]
[356970506,1743511839976,-500.0,0.0001726,2]
[356970507,1743511839986,-563.34495105,0.0001726,2]
[356970509,1743511839995,-707.22,0.0001726,2]
[356970511,1743511840005,-500.0,0.0001726,2]
[356970513,1743511840015,-444.80676993,0.0001726,2]
[356970515,1743511840024,-500.0,0.0001726,2]
[356970517,1743511840034,-500.0,0.0001726,2]
[356970518,1743511840044,-500.0,0.0001726,2]
[356970520,1743511840053,-901.5,0.0001726,2]
[356970522,1743511840062,-500.0,0.0001726,2]
[356970524,1743511840072,-500.0,0.0001726,2]
[356970525,1743511840081,-864.64,0.0001726,2]
[356970526,1743511840091,-500.0,0.0001726,2]
[356970527,1743511840102,-619.0,0.0001726,2]
[356970528,1743511840113,-896.88,0.0001726,2]
[356970529,1743511840128,-500.0,0.0001726,2]
[356970530,1743511840138,-500.0,0.0001726,2]
[356970531,1743511840147,-1772.12,0.0001726,2]
[356970532,1743511840158,-500.0,0.0001726,2]
[356970533,1743511840168,-596.7,0.0001726,2]
[356970534,1743511840178,-500.0,0.0001726,2]
[356970535,1743511840188,-500.0,0.0001726,2]
[356970536,1743511840200,-500.0,0.0001726,2]
[356970537,1743511840210,-500.0,0.0001726,2]
[356970538,1743511840220,-500.0,0.0001726,2]
[356970539,1743511840230,-3356.11,0.0001726,2]
[356970540,1743511840239,-500.0,0.0001726,2]
[356970541,1743511840248,-500.0,0.0001726,2]
[356970542,1743511840258,-540.11,0.0001726,2]
[356970543,1743511840267,-640.2,0.0001726,2]
[356970544,1743511840277,-564.61,0.0001726,2]
[356970545,1743511840286,-1033.56,0.0001726,2]
[356970546,1743511840295,-500.0,0.0001726,2]
[356970547,1743511840305,-500.0,0.0001726,2]
[356970548,1743511840315,-532.66,0.0001726,2]
[356970549,1743511840325,-2934.38,0.0001726,2]
[356970550,1743511840334,-278.68949019,0.0001726,2]
[356970551,1743511840344,-987.59,0.0001726,2]
[356970552,1743511840354,-500.0,0.0001726,2]
[356970553,1743511840364,-500.0,0.0001726,2]
[356970554,1743511840374,-335.02419154,0.0001726,2]
[356970555,1743511840383,-4154.16,0.0001726,2]
[356970556,1743511840393,-599.43,0.0001726,2]
[356970557,1743511840403,-500.0,0.0001726,2]
[356970558,1743511840413,-500.0,0.0001726,2]
[356970559,1743511840423,-610.45143376,0.0001726,2]
[356970560,1743511840433,-483.41076311,0.0001726,2]
[356970561,1743511840442,-500.0,0.0001726,2]
[356970562,1743511840452,-500.0,0.0001726,2]
[356970563,1743511840462,-686.03,0.0001726,2]
[356970564,1743511840471,-549.89,0.0001726,2]
[356970565,1743511840481,-500.0,0.0001726,2]
[356970566,1743511840491,-635.45,0.0001726,2]
[356970567,1743511840500,-500.0,0.0001726,2]
[356970568,1743511840509,-500.0,0.0001726,2]
[356970569,1743511840519,-500.0,0.0001726,2]
[356970570,1743511840529,-618.27,0.0001726,2]
[356970571,1743511840539,-500.0,0.0001726,2]
[356970572,1743511840548,-500.0,0.0001726,2]
[356970573,1743511840559,-500.0,0.0001726,2]
[356970574,1743511840569,-500.0,0.0001726,2]
[356970575,1743511840580,-500.0,0.0001726,2]
[356970576,1743511840590,-500.0,0.0001726,2]
[356970577,1743511840601,-500.0,0.0001726,2]
[356970578,1743511840611,-500.0,0.0001726,2]
[356970579,1743511840621,-500.0,0.0001726,2]
[356970580,1743511840631,-618.55,0.0001726,2]
[356970581,1743511840640,-500.0,0.0001726,2]
[356970582,1743511840650,-500.0,0.0001726,2]
[356970583,1743511840660,-500.0,0.0001726,2]
[356970584,1743511840669,-3733.39,0.0001726,2]
[356970585,1743511840679,-500.0,0.0001726,2]
[356970586,1743511840688,-500.0,0.0001726,2]
[356970587,1743511840698,-500.0,0.0001726,2]
[356970588,1743511840708,-589.15,0.0001726,2]
[356970589,1743511840718,-552.2,0.0001726,2]
[356970590,1743511840727,-500.0,0.0001726,2]
[356970591,1743511840737,-2903.61,0.0001726,2]
[356970592,1743511840746,-500.0,0.0001726,2]
[356970593,1743511840756,-500.0,0.0001726,2]
[356970594,1743511840765,-500.0,0.0001726,2]
[356970595,1743511840775,-500.0,0.0001726,2]
[356970596,1743511840784,-4746.78,0.0001726,2]
[356970597,1743511840793,-500.0,0.0001726,2]
[356970598,1743511840802,-500.0,0.0001726,2]
[356970599,1743511840811,-500.0,0.0001726,2]
[356970600,1743511840820,-500.0,0.0001726,2]
[356970601,1743511840963,-1427.21,0.0001726,2]
[356970602,1743511840974,-1831.33,0.0001726,2]
[356970603,1743511840984,-829.33,0.0001726,2]
[356970604,1743511840994,-500.0,0.0001726,2]
[356970605,1743511841004,-500.0,0.0001726,2]
[356970606,1743511841013,-901.12,0.0001726,2]
[356970607,1743511841023,-10198.4,0.0001726,2]
[356970608,1743511841033,-151.0,0.0001726,2]
[356970609,1743511841042,-1956.22,0.0001726,2]
[356970610,1743511841052,-500.0,0.0001726,2]
[356970611,1743511841062,-539.81,0.0001726,2]
[356970612,1743511841072,-607.67,0.0001726,2]
[356970613,1743511841082,-4310.96,0.0001726,2]
[356970614,1743511841092,-200.0,0.0001726,2]
[356970615,1743511841102,-2071.97,0.0001726,2]
[356970616,1743511841112,-500.0,0.0001726,2]
[356970617,1743511841124,-898.84,0.0001726,2]
[356970618,1743511841134,-500.0,0.0001726,2]
[356970619,1743511841143,-500.0,0.0001726,2]
[356970620,1743511841153,-500.0,0.0001726,2]
[356970621,1743511841164,-1742.34,0.0001726,2]
[356970622,1743511841173,-500.0,0.0001726,2]
[356970623,1743511841183,-594.35,0.0001726,2]
[356970624,1743511841192,-500.0,0.0001726,2]
[356970625,1743511841202,-505.77,0.0001726,2]
[356970626,1743511841212,-11519.68,0.0001726,2]
[356970627,1743511841222,-3396.4,0.0001726,2]
[356970628,1743511841232,-500.0,0.0001726,2]
[356970629,1743511841242,-588.38,0.0001726,2]
[356970630,1743511841252,-597.82,0.0001726,2]
[356970631,1743511841262,-500.0,0.0001726,2]
[356970632,1743511841273,-500.0,0.0001726,2]
[356970633,1743511841283,-500.0,0.0001726,2]
[356970634,1743511841293,-6013.25,0.0001726,2]
[356970635,1743511841303,-500.0,0.0001726,2]
[356970636,1743511841335,-698.88,0.0001726,2]
[356970637,1743511841345,-926.1,0.0001726,2]
[356970638,1743511841355,-2627.75,0.0001726,2]
[356970639,1743511841365,-2688.77,0.0001726,2]
[356970640,1743511841375,-1319.31,0.0001726,2]
[356970641,1743511841385,-2867.87,0.0001726,2]
[356970642,1743511841395,-3629.52,0.0001726,2]
[356970643,1743511841404,-907.13,0.0001726,2]
[356970644,1743511841414,-770.9,0.0001726,2]
[356970645,1743511841424,-584.69,0.0001726,2]
[356970646,1743511841434,-543.74,0.0001726,2]
[356970647,1743511841444,-1161.33,0.0001726,2]
[356970648,1743511841453,-1377.78,0.0001726,2]
[356970649,1743511841463,-814.41,0.0001726,2]
[356970650,1743511841472,-2088.0,0.0001726,2]
[356970651,1743511841482,-539.2,0.0001726,2]
[356970652,1743511841491,-820.58,0.0001726,2]
[356970653,1743511841501,-500.0,0.0001726,2]
[356970654,1743511841511,-500.0,0.0001726,2]
[356970655,1743511841520,-500.0,0.0001726,2]
[356970656,1743511841531,-5678.07,0.0001726,2]
[356970657,1743511841540,-500.0,0.0001726,2]
[356970658,1743511841550,-500.0,0.0001726,2]
[356970659,1743511841560,-500.0,0.0001726,2]
[356970660,1743511841569,-500.0,0.0001726,2]
[356970661,1743511841578,-1230.57,0.0001726,2]
[356970662,1743511841588,-932.68,0.0001726,2]
[356970663,1743511841597,-500.0,0.0001726,2]
[356970664,1743511841607,-500.0,0.0001726,2]
[356970665,1743511841616,-500.0,0.0001726,2]
[356970666,1743511841626,-968.43,0.0001726,2]
[356970667,1743511841636,-590.49,0.0001726,2]
[356970668,1743511841645,-500.0,0.0001726,2]
[356970669,1743511841655,-1446.65,0.0001726,2]
[356970670,1743511841664,-500.0,0.0001726,2]
[356970671,1743511841673,-500.0,0.0001726,2]
[356970672,1743511841683,-3087.28,0.0001726,2]
[356970673,1743511841694,-1474.18,0.0001726,2]
[356970674,1743511841703,-1315.11,0.0001726,2]
[356970675,1743511841713,-500.0,0.0001726,2]
[356970676,1743511841722,-2138.38,0.0001726,2]
[356970677,1743511841733,-500.0,0.00017534,2]
[356970678,1743511841742,-500.0,0.00017534,2]
[356970679,1743511841752,-500.0,0.00017534,2]
[356970680,1743511841762,-500.0,0.00017534,2]
[356970681,1743511841772,-500.0,0.00017534,2]
[356970682,1743511841782,-500.0,0.00017534,2]
[356970683,1743511841792,-500.0,0.00017534,2]
[356970684,1743511841802,-500.0,0.00017534,2]
[356970685,1743511841811,-500.0,0.00017534,2]
[356970686,1743511841821,-500.0,0.00017534,2]
[356970687,1743511841830,-500.0,0.00017534,2]
[356970688,1743511841840,-500.0,0.00017534,2]
[356970689,1743511841850,-500.0,0.00017534,2]
[356970690,1743511841859,-500.0,0.00017534,2]
[356970691,1743511841869,-500.0,0.00017534,2]
[356970692,1743511841878,-500.0,0.00017534,2]
[356970693,1743511841887,-500.0,0.00017534,2]
[356970694,1743511841897,-500.0,0.00017534,2]
[356970695,1743511841906,-500.0,0.00017534,2]
[356970696,1743511841916,-500.0,0.00017534,2]
[356970697,1743511841925,-500.0,0.00017534,2]
[356970698,1743511841935,-500.0,0.00017534,2]
[356970699,1743511841944,-362.50532653,0.00017534,2]
[356970700,1743511841954,-500.0,0.00017534,2]
[356970701,1743511841963,-500.0,0.00017534,2]
[356970702,1743511841973,-559.76,0.00017534,2]
[356970703,1743511841982,-500.0,0.00017534,2]
[356970704,1743511841992,-500.0,0.00017534,2]
[356970705,1743511842002,-812.55,0.00017534,2]
[356970706,1743511842012,-500.0,0.00017534,2]
[356970707,1743511842021,-785.36,0.00017534,2]
[356970708,1743511842031,-500.0,0.00017534,2]
[356970709,1743511842041,-500.0,0.00017534,2]
[356970710,1743511842050,-500.0,0.00017534,2]
[356970711,1743511842060,-500.0,0.00017534,2]
[356970712,1743511842069,-791.06,0.00017534,2]
[356970713,1743511842079,-500.0,0.00017534,2]
[356970714,1743511842089,-500.0,0.00017534,2]
[356970715,1743511842100,-500.0,0.00017534,2]
[356970716,1743511842109,-500.0,0.00017534,2]
[356970717,1743511842120,-500.0,0.00017534,2]
[356970718,1743511842130,-500.0,0.00017534,2]
[356970719,1743511842140,-500.0,0.00017534,2]
[356970720,1743511842149,-500.0,0.00017534,2]
[356970721,1743511842159,-500.0,0.00017534,2]
[356970722,1743511842168,-500.0,0.00017534,2]
[356970723,1743511842177,-500.0,0.00017534,2]
[356970724,1743511842186,-500.0,0.00017534,2]
[356970726,1743511842195,-1670.24,0.00017534,2]
[356970728,1743511842205,-500.0,0.00017534,2]
[356970729,1743511842222,-500.0,0.00017534,2]
[356970731,1743511842231,-500.0,0.00017534,2]
[356970733,1743511842241,-500.0,0.00017534,2]
[356970734,1743511842249,-500.0,0.00017534,2]
[356970736,1743511842259,-500.0,0.00017534,2]
[356970738,1743511842269,-707.22,0.00017534,2]
[356970740,1743511842279,-500.0,0.00017534,2]
[356970742,1743511842290,-500.0,0.00017534,2]
[356970744,1743511842299,-500.0,0.00017534,2]
[356970746,1743511842309,-500.0,0.00017534,2]
[356970747,1743511842319,-901.5,0.00017534,2]
[356970748,1743511842328,-500.0,0.00017534,2]
[356970749,1743511842338,-500.0,0.00017534,2]
[356970751,1743511842348,-500.0,0.00017534,2]
[356970752,1743511842357,-864.64,0.00017534,2]
[356970753,1743511842367,-619.0,0.00017534,2]
[356970754,1743511842376,-896.88,0.00017534,2]
[356970755,1743511842386,-500.0,0.00017534,2]
[356970756,1743511842396,-500.0,0.00017534,2]
[356970757,1743511842405,-1772.12,0.00017534,2]
[356970758,1743511842415,-500.0,0.00017534,2]
[356970759,1743511842424,-596.7,0.00017534,2]
[356970760,1743511842434,-500.0,0.00017534,2]
[356970761,1743511842443,-500.0,0.00017534,2]
[356970762,1743511842453,-500.0,0.00017534,2]
[356970763,1743511842463,-500.0,0.00017534,2]
[356970764,1743511842473,-500.0,0.00017534,2]
[356970765,1743511842482,-3356.11,0.00017534,2]
[356970766,1743511842492,-500.0,0.00017534,2]
[356970767,1743511842502,-500.0,0.00017534,2]
[356970769,1743511842512,-540.11,0.00017534,2]
[356970771,1743511842521,-640.2,0.00017534,2]
[356970772,1743511842531,-564.61,0.00017534,2]
[356970773,1743511842541,-1033.56,0.00017534,2]
[356970774,1743511842550,-500.0,0.00017534,2]
[356970775,1743511842559,-500.0,0.00017534,2]
[356970776,1743511842568,-532.66,0.00017534,2]
[356970777,1743511842577,-2934.38,0.00017534,2]
[356970778,1743511842586,-987.59,0.00017534,2]
[356970779,1743511842596,-500.0,0.00017534,2]
[356970780,1743511842606,-500.0,0.00017534,2]
[356970781,1743511842615,-599.43,0.00017534,2]
[356970782,1743511842625,-4154.16,0.00017534,2]
[356970784,1743511842634,-500.0,0.00017534,2]
[356970786,1743511842646,-500.0,0.00017534,2]
[356970788,1743511842655,-500.0,0.00017534,2]
[356970790,1743511842665,-500.0,0.00017534,2]
[356970792,1743511842674,-686.03,0.00017534,2]
[356970794,1743511842684,-549.89,0.00017534,2]
[356970796,1743511842694,-500.0,0.00017534,2]
[356970798,1743511842703,-635.45,0.00017534,2]
[356970799,1743511842713,-500.0,0.00017534,2]
[356970800,1743511842723,-500.0,0.00017534,2]
[356970801,1743511842733,-500.0,0.00017534,2]
[356970802,1743511842743,-618.27,0.00017534,2]
[356970803,1743511842752,-500.0,0.00017534,2]
[356970804,1743511842762,-500.0,0.00017534,2]
[356970805,1743511842771,-500.0,0.00017534,2]
[356970806,1743511842782,-262.56936119,0.00017534,2]
[356970807,1743511842791,-500.0,0.00017534,2]
[356970808,1743511842801,-500.0,0.00017534,2]
[356970809,1743511842811,-500.0,0.00017534,2]
[356970810,1743511842822,-500.0,0.00017534,2]
[356970811,1743511842832,-500.0,0.00017534,2]
[356970812,1743511842842,-618.55,0.00017534,2]
[356970813,1743511842851,-500.0,0.00017534,2]
[356970814,1743511842861,-500.0,0.00017534,2]
[356970815,1743511842871,-500.0,0.00017534,2]
[356970816,1743511842881,-3733.39,0.00017534,2]
[356970817,1743511842890,-500.0,0.00017534,2]
[356970818,1743511842900,-500.0,0.00017534,2]
[356970819,1743511842911,-500.0,0.00017534,2]
[356970821,1743511842920,-589.15,0.00017534,2]
[356970822,1743511842930,-500.0,0.00017534,2]
[356970823,1743511842940,-552.2,0.00017534,2]
[356970824,1743511842949,-2903.61,0.00017534,2]
[356970825,1743511842959,-500.0,0.00017534,2]
[356970827,1743511842969,-500.0,0.00017534,2]
[356970829,1743511842979,-500.0,0.00017534,2]
[356970831,1743511842989,-500.0,0.00017534,2]
[356970832,1743511842999,-4746.78,0.00017534,2]
[356970833,1743511843008,-500.0,0.00017534,2]
[356970834,1743511843021,-500.0,0.00017534,2]
[356970835,1743511843032,-500.0,0.00017534,2]
[356970836,1743511843042,-500.0,0.00017534,2]
[356970837,1743511843051,-1427.21,0.00017534,2]
[356970838,1743511843062,-1831.33,0.00017534,2]
[356970839,1743511843071,-829.33,0.00017534,2]
[356970840,1743511843081,-500.0,0.00017534,2]
[356970841,1743511843091,-500.0,0.00017534,2]
[356970842,1743511843102,-901.12,0.00017534,2]
[356970843,1743511843112,-10198.4,0.00017534,2]
[356970844,1743511843126,-151.0,0.00017534,2]
[356970845,1743511843136,-1956.22,0.00017534,2]
[356970846,1743511843145,-500.0,0.00017534,2]
[356970847,1743511843156,-539.81,0.00017534,2]
[356970848,1743511843166,-607.67,0.00017534,2]
[356970849,1743511843175,-4310.96,0.00017534,2]
[356970850,1743511843184,-200.0,0.00017534,2]
[356970851,1743511843194,-2071.97,0.00017534,2]
[356970852,1743511843205,-500.0,0.00017534,2]
[356970853,1743511843215,-898.84,0.00017534,2]
[356970854,1743511843224,-500.0,0.00017534,2]
[356970855,1743511843233,-500.0,0.00017534,2]
[356970856,1743511843242,-500.0,0.00017534,2]
[356970857,1743511843252,-1742.34,0.00017534,2]
[356970858,1743511843261,-500.0,0.00017534,2]
[356970859,1743511843270,-594.35,0.00017534,2]
[356970860,1743511843280,-500.0,0.00017534,2]
[356970861,1743511843289,-505.77,0.00017534,2]
[356970862,1743511843299,-11519.68,0.00017534,2]
[356970863,1743511843308,-3396.4,0.00017534,2]
[356970864,1743511843316,-500.0,0.00017534,2]
[356970865,1743511843325,-588.38,0.00017534,2]
[356970866,1743511843334,-597.82,0.00017534,2]